fUSD/lending_fUSD_20240119
["ID","MTS","AMOUNT","RATE_DAILY","PERIOD"]
[312168990,1705677042917,-604.8212046,0.00021916,2]
[312168992,1705677042930,-1301.69253816,0.00021916,2]
[312168993,1705677042953,-1311.77819155,0.00021916,2]
[312168994,1705677042966,-697.54432177,0.00021916,2]
[312168995,1705677042987,-13351.8775,0.00021916,2]
[312168996,1705677043000,-6731.23140072,0.00021916,2]
[312169047,1705677043550,-1644.096,0.00021916,2]
[312169050,1705677043569,-35966.63021378,0.00021916,2]
[312169288,1705677045750,-496.28,0.00021916,2]
[312169304,1705677045821,-1878.84,0.00021916,2]
[312169329,1705677046381,-359.76907127,0.00021915,2]
[312169331,1705677046396,-2.04152313,0.00021915,2]
[312169333,1705677046407,-268.61347521,0.00021915,2]
[312169335,1705677046419,-1112.68995523,0.00021915,2]
[312169339,1705677046524,-720.31135048,0.00021915,2]
[312169341,1705677046536,-1025.56343944,0.00021915,2]
[312169343,1705677046545,-1039.06598373,0.00021915,2]
[312169345,1705677046557,-1269.51983804,0.00021915,2]
[312169347,1705677046570,-14458.05704899,0.00021915,2]
[312169349,1705677046580,-10747.94295123,0.00021916,2]
[312169353,1705677046690,-8e-08,0.00021916,2]
[312169354,1705677046703,-892.9623729,0.00021916,2]
[312169355,1705677046715,-516.20988609,0.00021916,2]
[312169356,1705677046738,-344.50000044,0.00021916,2]
[312169369,1705677643696,-2000.0,0.00024923,28]
[312169370,1705677964217,150.0,0.00018372,2]
[312169371,1705677964242,57.0,0.00018372,2]
[312169377,1705678067922,150.0,0.0001778,2]
[312169378,1705678067951,150.0,0.0001778,2]
[312169379,1705678067973,150.0,0.0001778,2]
[312169380,1705678067998,24.9,0.0001778,2]
[312169381,1705678129537,-501.56698146,0.00018553,2]
[312169382,1705678131248,448.34593077,0.00018553,2]
[312169386,1705678154380,151.0,0.00029988,120]
[312169387,1705678208394,179.51479234,0.00018447,2]
[312169416,1705678233719,-424.3,0.0001854,2]
[312169417,1705678233745,-1552.86344971,0.0001854,2]
[312169418,1705678233757,-328.78748034,0.0001854,2]
[312169419,1705678233769,-639.29473813,0.0001854,2]
[312169420,1705678233790,-4840.42933617,0.0001854,2]
[312169421,1705678233801,-361.8105944,0.00018541,2]
[312169422,1705678233811,-766.87003814,0.00018541,2]
[312169423,1705678233821,-516.62500609,0.00018541,2]
[312169424,1705678233830,-967.0016489,0.00018542,2]
[312169425,1705678233839,-376.99778684,0.00018542,2]
[312169426,1705678233848,-337.71417156,0.00018543,2]
[312169427,1705678233858,-3145.34192243,0.00018543,2]
[312169428,1705678233868,-488.13402773,0.00018543,2]
[312169429,1705678233877,-3030.69265764,0.00018543,2]
[312169430,1705678233886,-651.76209495,0.00018544,2]
[312169431,1705678233895,-525.31564843,0.00018544,2]
[312169432,1705678233904,-387.06249631,0.00018544,2]
[312169433,1705678233914,-265.56171591,0.00018544,2]
[312169434,1705678233923,-2902.60645691,0.00018544,2]
[312169435,1705678233933,-474.53273645,0.00018544,2]
[312169436,1705678233942,-940.81377552,0.00018544,2]
[312169437,1705678233951,-622.17405158,0.00018544,2]
[312169438,1705678233961,-1061.16567652,0.00018544,2]
[312169439,1705678233970,-523.93151368,0.00018544,2]
[312169440,1705678233979,-1812.46036172,0.00018545,2]
[312169441,1705678233988,-629.04989027,0.00018546,2]
[312169442,1705678233997,-501.56698146,0.00018546,2]
[312169443,1705678234007,-150.0,0.00018546,2]
[312169444,1705678234016,-300.0,0.00018546,2]
[312169445,1705678234026,-404.41410196,0.00018547,2]
[312169446,1705678234037,-7106.77367024,0.00018547,5]
[312169447,1705678234046,-1852.93487008,0.00018547,2]
[312169448,1705678234058,-286.73899009,0.00018547,2]
[312169449,1705678234067,-867.3574407,0.00018547,2]
[312169450,1705678234076,-17184.90684535,0.00018561,2]
[312169451,1705678234099,-770.0,0.00018561,2]
[312169452,1705678234113,-605.0,0.00018561,2]
[312169453,1705678234129,-1000.0,0.00018561,2]
[312169454,1705678234163,-110268.26000256,0.00018561,2]
[312169455,1705678234172,-150.99,0.00018566,2]
[312169456,1705678234181,-378.54,0.00018624,2]
[312169457,1705678234190,-499.99,0.00018624,2]
[312169458,1705678234200,-1986.99848638,0.00018666,2]
[312169459,1705678234210,-164.89,0.00018737,2]
[312169460,1705678234220,-3677.99176611,0.000192,2]
[312169461,1705678234229,-179.51479232,0.00019358,2]
[312169462,1705678234239,-500.0,0.00019614,2]
[312169463,1705678234248,-500.0,0.00019626,2]
[312169464,1705678234257,-150.0,0.00019651,2]
[312169465,1705678234267,-1500.0,0.00019668,2]
[312169466,1705678234276,-500.0,0.0001968,2]
[312169467,1705678234285,-426.71,0.00019697,2]
[312169468,1705678234295,-894.55,0.00019697,2]
[312169469,1705678234306,-151.16,0.00019707,2]
[312169470,1705678234316,-1193.41,0.00019723,2]
[312169471,1705678234326,-590.4,0.00019725,2]
[312169472,1705678234335,-750.0,0.00019738,2]
[312169473,1705678234346,-23900.0,0.00019776,2]
[312169474,1705678234356,-1852.42,0.00019776,2]
[312169475,1705678234366,-3177.19,0.00019776,2]
[312169476,1705678234375,-687.47,0.00019776,2]
[312169477,1705678234385,-153.44,0.00019776,2]
[312169478,1705678234394,-150.0,0.00019858,2]
[312169479,1705678234403,-150.0,0.00019862,2]
[312169480,1705678234413,-157.15,0.0001987,2]
[312169481,1705678234422,-151.16,0.00019876,2]
[312169482,1705678234431,-150.0,0.00019964,2]
[312169483,1705678234440,-409.6,0.0001999,2]
[312169484,1705678234450,-569.32800861,0.0002,2]
[312169485,1705678234459,-474.9,0.00020044,2]
[312169486,1705678234469,-151.16,0.00020045,2]
[312169487,1705678234478,-150.0,0.0002013,2]
[312169488,1705678234488,-1159.79,0.00020202,2]
[312169489,1705678234497,-151.16,0.00020214,2]
[312169490,1705678234506,-300.0,0.00020224,2]
[312169491,1705678234516,-157.44,0.00020237,2]
[312169492,1705678234525,-179.51479232,0.00020269,2]
[312169493,1705678234535,-151.16,0.00020382,2]
[312169494,1705678234545,-150.0,0.00020384,2]
[312169495,1705678234555,-2000.0,0.00020548,2]
[312169496,1705678234565,-151.16,0.00020551,2]
[312169497,1705678234574,-894.55,0.00020676,2]
[312169498,1705678234584,-157.93510011,0.00020688,2]
[312169499,1705678234594,-151.16,0.0002072,2]
[312169500,1705678234603,-157.15,0.00020804,2]
[312169501,1705678234613,-726.53,0.00020816,2]
[312169502,1705678234623,-711.92,0.00020819,2]
[312169503,1705678234633,-714.34,0.00020819,2]
[312169504,1705678234642,-6236.5926,0.00020871,2]
[312169505,1705678234653,-151.16,0.00020889,2]
[312169506,1705678234663,-150.0,0.00020905,2]
[312169507,1705678234672,-150.0,0.00020947,2]
[312169508,1705678234681,-730.27233577,0.00021,2]
[312169509,1705678234690,-151.16,0.00021058,2]
[312169510,1705678234699,-179.51479232,0.00021179,2]
[312169511,1705678234709,-157.46,0.00021194,2]
[312169512,1705678234718,-151.16,0.00021227,2]
[312169513,1705678234728,-207.0,0.00021345,6]
[312169514,1705678234737,-151.16,0.00021396,2]
[312169515,1705678234746,-986.89395439,0.0002143,2]
[312169516,1705678234755,-986.89395438,0.0002143,2]
[312169517,1705678234765,-15356.3861249,0.00021438,2]
[312169524,1705678238916,-400.0,0.0001854,2]
[312169525,1705678238926,-5457.88063624,0.00021438,2]
[312169526,1705678238937,-493.59000261,0.00021438,2]
[312169527,1705678238949,-6986.52217067,0.00021438,2]
[312169528,1705678238958,-154.86,0.00021516,2]
[312169529,1705678238968,-159.28,0.00021556,2]
[312169530,1705678238977,-151.16,0.00021565,2]
[312169531,1705678238987,-347.28,0.00021644,2]
[312169532,1705678238997,-894.55,0.00021654,2]
[312169533,1705678239008,-286.69940733,0.00021696,2]
[312169534,1705678239018,-151.16,0.00021734,2]
[312169535,1705678239027,-157.15,0.00021738,2]
[312169536,1705678239039,-50194.985,0.00021816,2]
[312169537,1705678239049,-1755.66648862,0.00021816,2]
[312169538,1705678239061,-250.0,0.000219,2]
[312169539,1705678239070,-169.8090897,0.000219,2]
[312169540,1705678239080,-151.16,0.00021903,2]
[312169541,1705678239090,-419.43600866,0.00021904,2]
[312169542,1705678239100,-4348.54315526,0.00021913,2]
[312169543,1705678239110,-7154.67400378,0.00021914,2]
[312169544,1705678239121,-1708.99723739,0.00021914,2]
[312169545,1705678239132,-457.82689836,0.00021914,2]
[312169546,1705678239142,-16455.23416993,0.00021914,2]
[312169547,1705678239153,-155.0,0.00021914,2]
[312169548,1705678239164,-3191.26397536,0.00021915,2]
[312169549,1705678239174,-282.74871414,0.00021915,2]
[312169550,1705678239184,-1024.71134146,0.00021915,2]
[312169551,1705678239195,-243.46550004,0.00021915,2]
[312169552,1705678239205,-2611.25461852,0.00021915,2]
[312169553,1705678239215,-438.69123156,0.00021915,2]
[312169554,1705678239226,-1318.85285643,0.00021915,2]
[312169555,1705678239236,-354.47844138,0.00021915,2]
[312169556,1705678239245,-1043.85714201,0.00021915,2]
[312169557,1705678239254,-486.83407481,0.00021915,2]
[312169558,1705678239264,-3003.99342533,0.00021915,2]
[312169559,1705678239274,-2946.32890378,0.00021915,2]
[312169560,1705678239283,-1369.64130724,0.00021915,2]
[312169561,1705678239293,-817.58142044,0.00021915,2]
[312169562,1705678239304,-348.82460716,0.00021915,2]
[312169563,1705678239314,-731.39,0.00021916,2]
[312169564,1705678239324,-200.0,0.00021916,2]
[312169565,1705678239334,-500.0,0.00021917,2]
[312169567,1705678239344,-500.0,0.00021917,2]
[312169569,1705678239354,-500.0,0.00021917,2]
[312169571,1705678239363,-500.0,0.00021917,2]
[312169573,1705678239373,-512.62617183,0.00021917,2]
[312169575,1705678239383,-500.0,0.00021917,2]
[312169576,1705678239393,-500.0,0.00021917,2]
[312169578,1705678239402,-500.0,0.00021917,2]
[312169580,1705678239411,-500.0,0.00021917,2]
[312169582,1705678239420,-500.0,0.00021917,2]
[312169584,1705678239430,-500.0,0.00021917,2]
[312169585,1705678239439,-509.62,0.00021917,2]
[312169586,1705678239449,-500.0,0.00021917,2]
[312169587,1705678239458,-500.0,0.00021917,2]
[312169589,1705678239467,-500.0,0.00021917,2]
[312169591,1705678239477,-500.0,0.00021917,2]
[312169593,1705678239487,-500.0,0.00021917,2]
[312169595,1705678239497,-500.0,0.00021917,2]
[312169596,1705678239507,-500.0,0.00021917,2]
[312169599,1705678239517,-500.0,0.00021917,2]
[312169600,1705678239527,-500.0,0.00021917,2]
[312169602,1705678239537,-716.93,0.00021917,2]
[312169605,1705678239547,-500.0,0.00021917,2]
[312169606,1705678239558,-500.0,0.00021917,2]
[312169608,1705678239568,-500.0,0.00021917,2]
[312169610,1705678239578,-500.0,0.00021917,2]
[312169612,1705678239587,-500.0,0.00021917,2]
[312169614,1705678239597,-500.0,0.00021917,2]
[312169616,1705678239606,-614.12975212,0.00021917,2]
[312169619,1705678239616,-651.75,0.00021917,2]
[312169621,1705678239626,-500.0,0.00021917,2]
[312169624,1705678239636,-500.0,0.00021917,2]
[312169625,1705678239646,-528.8725535,0.00021917,2]
[312169627,1705678239655,-747.07,0.00021917,2]
[312169629,1705678239665,-500.0,0.00021917,2]
[312169631,1705678239675,-259.437653,0.00021917,2]
[312169633,1705678239685,-500.0,0.00021917,2]
[312169635,1705678239696,-500.0,0.00021917,2]
[312169637,1705678239705,-500.0,0.00021917,2]
[312169639,1705678239715,-500.0,0.00021917,2]
[312169642,1705678239725,-500.0,0.00021917,2]
[312169643,1705678239735,-500.0,0.00021917,2]
[312169645,1705678239744,-500.0,0.00021917,2]
[312169647,1705678239754,-500.0,0.00021917,2]
[312169649,1705678239763,-500.0,0.00021917,2]
[312169651,1705678239773,-500.0,0.00021917,2]
[312169653,1705678239783,-500.0,0.00021917,2]
[312169655,1705678239792,-536.44,0.00021917,2]
[312169657,1705678239804,-500.0,0.00021917,2]
[312169659,1705678239814,-1000.0,0.00021917,10]
[312169661,1705678239823,-500.0,0.00021917,2]
[312169663,1705678239833,-637.25,0.00021917,2]
[312169665,1705678239843,-500.0,0.00021917,2]
[312169667,1705678239853,-500.0,0.00021917,2]
[312169669,1705678239863,-500.0,0.00021917,2]
[312169671,1705678239873,-838.95,0.00021917,2]
[312169673,1705678239882,-500.0,0.00021917,2]
[312169675,1705678239891,-500.0,0.00021917,2]
[312169677,1705678239900,-500.0,0.00021917,2]
[312169680,1705678239917,-500.0,0.00021917,2]
[312169682,1705678239931,-500.0,0.00021917,2]
[312169684,1705678239940,-500.0,0.00021917,2]
[312169686,1705678239950,-500.0,0.00021917,2]
[312169688,1705678239960,-427.14499926,0.00021917,2]
[312169690,1705678239970,-500.0,0.00021917,2]
[312169692,1705678239980,-500.0,0.00021917,2]
[312169694,1705678239989,-500.0,0.00021917,2]
[312169696,1705678239999,-500.0,0.00021917,2]
[312169699,1705678240010,-500.0,0.00021917,2]
[312169701,1705678240020,-172.61,0.00021917,2]
[312169702,1705678240030,-500.0,0.00021917,2]
[312169705,1705678240041,-500.0,0.00021917,2]
[312169707,1705678240052,-500.0,0.00021917,2]
[312169709,1705678240062,-500.0,0.00021917,2]
[312169711,1705678240071,-500.0,0.00021917,2]
[312169713,1705678240082,-500.0,0.00021917,2]
[312169715,1705678240092,-500.0,0.00021917,2]
[312169717,1705678240102,-500.0,0.00021917,2]
[312169719,1705678240112,-500.0,0.00021917,2]
[312169721,1705678240122,-500.0,0.00021917,2]
[312169723,1705678240132,-500.0,0.00021917,2]
[312169725,1705678240141,-500.0,0.00021917,2]
[312169727,1705678240151,-500.0,0.00021917,2]
[312169729,1705678240160,-500.0,0.00021917,2]
[312169731,1705678240170,-500.0,0.00021917,2]
[312169733,1705678240179,-500.0,0.00021917,2]
[312169735,1705678240189,-500.0,0.00021917,2]
[312169737,1705678240198,-500.0,0.00021917,2]
[312169739,1705678240208,-732.74,0.00021917,2]
[312169741,1705678240218,-500.0,0.00021917,2]
[312169744,1705678240227,-500.0,0.00021917,2]
[312169746,1705678240236,-500.0,0.00021917,2]
[312169748,1705678240246,-500.0,0.00021917,2]
[312169750,1705678240255,-500.0,0.00021917,2]
[312169752,1705678240264,-500.0,0.00021917,2]
[312169754,1705678240274,-500.0,0.00021917,2]
[312169756,1705678240284,-529.84,0.00021917,2]
[312169758,1705678240294,-500.0,0.00021917,2]
[312169760,1705678240305,-500.0,0.00021917,2]
[312169762,1705678240315,-500.0,0.00021917,2]
[312169765,1705678240324,-500.0,0.00021917,2]
[312169767,1705678240334,-500.0,0.00021917,2]
[312169769,1705678240345,-616.69,0.00021917,2]
[312169771,1705678240354,-500.0,0.00021917,2]
[312169773,1705678240364,-500.0,0.00021917,2]
[312169776,1705678240373,-500.0,0.00021917,2]
[312169778,1705678240383,-500.0,0.00021917,2]
[312169780,1705678240393,-500.0,0.00021917,2]
[312169782,1705678240403,-500.0,0.00021917,2]
[312169784,1705678240418,-677.43,0.00021917,2]
[312169786,1705678240428,-500.0,0.00021917,2]
[312169788,1705678240438,-500.0,0.00021917,2]
[312169791,1705678240448,-608.76,0.00021917,2]
[312169793,1705678240458,-500.0,0.00021917,2]
[312169795,1705678240468,-500.0,0.00021917,2]
[312169797,1705678240478,-500.0,0.00021917,2]
[312169799,1705678240487,-500.0,0.00021917,2]
[312169801,1705678240498,-500.0,0.00021917,2]
[312169803,1705678240508,-500.0,0.00021917,2]
[312169805,1705678240517,-500.0,0.00021917,2]
[312169807,1705678240528,-500.0,0.00021917,2]
[312169809,1705678240538,-500.0,0.00021917,2]
[312169811,1705678240548,-500.0,0.00021917,2]
[312169814,1705678240561,-500.0,0.00021917,2]
[312169816,1705678240570,-500.0,0.00021917,2]
[312169818,1705678240580,-500.0,0.00021917,2]
[312169819,1705678240590,-500.0,0.00021917,2]
[312169822,1705678240599,-1029.35,0.00021917,2]
[312169824,1705678240610,-722.37,0.00021917,2]
[312169826,1705678240620,-500.0,0.00021917,2]
[312169828,1705678240629,-500.0,0.00021917,2]
[312169830,1705678240639,-278.28072183,0.00021917,2]
[312169832,1705678240649,-500.0,0.00021917,2]
[312169834,1705678240658,-679.74,0.00021917,2]
[312169836,1705678240668,-500.0,0.00021917,2]
[312169838,1705678240678,-500.0,0.00021917,2]
[312169840,1705678240687,-500.0,0.00021917,2]
[312169842,1705678240697,-500.0,0.00021917,2]
[312169844,1705678240707,-500.0,0.00021917,2]
[312169846,1705678240716,-500.0,0.00021917,2]
[312169848,1705678240726,-500.0,0.00021917,2]
[312169850,1705678240736,-500.0,0.00021917,2]
[312169852,1705678240745,-500.0,0.00021917,2]
[312169854,1705678240755,-500.0,0.00021917,2]
[312169856,1705678240765,-500.0,0.00021917,2]
[312169858,1705678240774,-762.34,0.00021917,2]
[312169860,1705678240784,-500.0,0.00021917,2]
[312169862,1705678240793,-500.0,0.00021917,2]
[312169864,1705678240803,-805.61,0.00021917,2]
[312169866,1705678240813,-500.0,0.00021917,2]
[312169868,1705678240823,-1070.38,0.00021917,2]
[312169870,1705678240833,-500.0,0.00021917,2]
[312169872,1705678240843,-1119.49,0.00021917,2]
[312169874,1705678240854,-500.0,0.00021917,2]
[312169875,1705678240864,-500.0,0.00021917,2]
[312169876,1705678240874,-500.0,0.00021917,2]
[312169877,1705678240883,-500.0,0.00021917,2]
[312169878,1705678240894,-500.0,0.00021917,2]
[312169879,1705678240903,-500.0,0.00021917,2]
[312169880,1705678240918,-500.0,0.00021917,2]
[312169881,1705678240928,-500.0,0.00021917,2]
[312169883,1705678240938,-500.0,0.00021917,2]
[312169885,1705678240948,-500.0,0.00021917,2]
[312169888,1705678240958,-500.0,0.00021917,2]
[312169890,1705678240968,-500.0,0.00021917,2]
[312169892,1705678240977,-755.31,0.00021917,2]
[312169894,1705678240987,-500.0,0.00021917,2]
[312169896,1705678240997,-515.29,0.00021917,2]
[312169898,1705678241007,-545.56,0.00021917,2]
[312169900,1705678241022,-500.0,0.00021917,2]
[312169902,1705678241033,-271.15215589,0.00021917,2]
[312169904,1705678241044,-500.0,0.00021917,2]
[312169906,1705678241056,-500.0,0.00021917,2]
[312169908,1705678241066,-500.0,0.00021917,2]
[312169910,1705678241077,-668.31,0.00021917,2]
[312169912,1705678241087,-500.0,0.00021917,2]
[312169914,1705678241099,-500.0,0.00021917,2]
[312169916,1705678241110,-500.0,0.00021917,2]
[312169918,1705678241121,-625.23,0.00021917,2]
[312169920,1705678241131,-500.0,0.00021917,2]
[312169922,1705678241141,-500.0,0.00021917,2]
[312169924,1705678241151,-500.0,0.00021917,2]
[312169926,1705678241161,-649.83,0.00021917,2]
[312169928,1705678241172,-518.9,0.00021917,2]
[312169930,1705678241182,-554.14,0.00021917,2]
[312169933,1705678241192,-500.0,0.00021917,2]
[312169935,1705678241203,-500.0,0.00021917,2]
[312169937,1705678241212,-800.49,0.00021917,2]
[312169939,1705678241223,-500.0,0.00021917,2]
[312169941,1705678241232,-537.69459373,0.00021917,2]
[312169943,1705678241242,-500.0,0.00021917,2]
[312169945,1705678241252,-500.0,0.00021917,2]
[312169947,1705678241262,-585.19,0.00021917,2]
[312169949,1705678241272,-557.11,0.00021917,2]
[312169951,1705678241282,-500.0,0.00021917,2]
[312169953,1705678241292,-500.0,0.00021917,2]
[312169955,1705678241305,-500.0,0.00021917,2]
[312169957,1705678241316,-602.84,0.00021917,2]
[312169959,1705678241327,-500.0,0.00021917,2]
[312169961,1705678241337,-500.0,0.00021917,2]
[312169963,1705678241348,-500.0,0.00021917,2]
[312169965,1705678241357,-500.0,0.00021917,2]
[312169967,1705678241367,-511.46,0.00021917,2]
[312169970,1705678241377,-500.0,0.00021917,2]
[312169972,1705678241387,-500.0,0.00021917,2]
[312169974,1705678241397,-755.01,0.00021917,2]
[312169975,1705678241406,-500.0,0.00021917,2]
[312169978,1705678241418,-500.0,0.00021917,2]
[312169980,1705678241431,-647.57,0.00021917,2]
[312169982,1705678241441,-500.0,0.00021917,2]
[312169984,1705678241450,-945.29,0.00021917,2]
[312169986,1705678241460,-500.0,0.00021917,2]
[312169988,1705678241470,-500.0,0.00021917,2]
[312169990,1705678241479,-591.96,0.00021917,2]
[312169992,1705678241489,-500.0,0.00021917,2]
[312169994,1705678241499,-616.28,0.00021917,2]
[312169996,1705678241509,-561.66227921,0.00021917,2]
[312169998,1705678241519,-500.0,0.00021917,2]
[312170000,1705678241529,-500.0,0.00021917,2]
[312170002,1705678241539,-500.0,0.00021917,2]
[312170004,1705678241548,-500.0,0.00021917,2]
[312170007,1705678241561,-500.0,0.00021917,2]
[312170009,1705678241571,-714.49,0.00021917,2]
[312170011,1705678241580,-500.0,0.00021917,2]
[312170013,1705678241591,-280.47,0.00021917,2]
[312170015,1705678241601,-511.42,0.00021917,2]
[312170017,1705678241611,-500.0,0.00021917,2]
[312170019,1705678241621,-500.0,0.00021917,2]
[312170021,1705678241631,-500.0,0.00021917,2]
[312170023,1705678241640,-500.0,0.00021917,2]
[312170025,1705678241650,-500.0,0.00021917,2]
[312170027,1705678241659,-500.0,0.00021917,2]
[312170029,1705678241669,-794.31,0.00021917,2]
[312170031,1705678241679,-715.35,0.00021917,2]
[312170033,1705678241688,-500.0,0.00021917,2]
[312170035,1705678241697,-500.0,0.00021917,2]
[312170037,1705678241707,-500.0,0.00021917,2]
[312170039,1705678241716,-500.0,0.00021917,2]
[312170041,1705678241726,-500.0,0.00021917,2]
[312170043,1705678241736,-500.0,0.00021917,2]
[312170046,1705678241746,-500.0,0.00021917,2]
[312170048,1705678241756,-500.0,0.00021917,2]
[312170050,1705678241765,-500.0,0.00021917,2]
[312170052,1705678241774,-500.0,0.00021917,2]
[312170054,1705678241783,-500.0,0.00021917,2]
[312170056,1705678241792,-591.89,0.00021917,2]
[312170058,1705678241804,-500.0,0.00021917,2]
[312170060,1705678241813,-500.0,0.00021917,2]
[312170062,1705678241824,-500.0,0.00021917,2]
[312170064,1705678241833,-500.0,0.00021917,2]
[312170066,1705678241842,-727.12,0.00021917,2]
[312170068,1705678241851,-500.0,0.00021917,2]
[312170069,1705678241863,-872.21,0.00021917,2]
[312170072,1705678241872,-500.0,0.00021917,2]
[312170074,1705678241882,-500.0,0.00021917,2]
[312170076,1705678241891,-500.0,0.00021917,2]
[312170078,1705678241901,-717.07,0.00021917,2]
[312170080,1705678241910,-500.0,0.00021917,2]
[312170082,1705678241920,-500.0,0.00021917,2]
[312170084,1705678241929,-589.35,0.00021917,2]
[312170086,1705678241938,-500.0,0.00021917,2]
[312170088,1705678241947,-500.0,0.00021917,2]
[312170090,1705678241957,-838.1,0.00021917,2]
[312170092,1705678241967,-699.17,0.00021917,2]
[312170094,1705678241980,-500.0,0.00021917,2]
[312170096,1705678241990,-1054.42,0.00021917,2]
[312170098,1705678241999,-500.0,0.00021917,2]
[312170100,1705678242009,-500.0,0.00021917,2]
[312170102,1705678242019,-500.0,0.00021917,2]
[312170104,1705678242030,-862.35,0.00021917,2]
[312170106,1705678242041,-519.77,0.00021917,2]
[312170108,1705678242051,-500.0,0.00021917,2]
[312170110,1705678242063,-500.0,0.00021917,2]
[312170112,1705678242073,-500.0,0.00021917,2]
[312170114,1705678242082,-500.0,0.00021917,2]
[312170117,1705678242100,-903.53,0.00021917,2]
[312170119,1705678242112,-695.15,0.00021917,2]
[312170121,1705678242122,-507.74,0.00021917,2]
[312170124,1705678242132,-500.0,0.00021917,7]
[312170126,1705678242142,-500.0,0.00021917,2]
[312170128,1705678242151,-500.0,0.00021917,2]
[312170130,1705678242160,-500.0,0.00021917,2]
[312170132,1705678242170,-500.0,0.00021917,2]
[312170134,1705678242179,-545.49,0.00021917,2]
[312170136,1705678242189,-500.0,0.00021917,2]
[312170138,1705678242198,-500.0,0.00021917,2]
[312170140,1705678242209,-500.0,0.00021917,2]
[312170142,1705678242218,-500.0,0.00021917,2]
[312170144,1705678242228,-500.0,0.00021917,2]
[312170146,1705678242238,-500.0,0.00021917,2]
[312170186,1705678242655,-500.0,0.00021917,2]
[312170188,1705678242666,-563.38,0.00021917,2]
[312170190,1705678242676,-535.3522427,0.00021917,2]
[312170192,1705678242686,-400.74106684,0.00021917,2]
[312170194,1705678242696,-500.0,0.00021917,2]
[312170196,1705678242705,-635.14,0.00021917,2]
[312170198,1705678242716,-500.0,0.00021917,2]
[312170200,1705678242726,-679.28,0.00021917,2]
[312170202,1705678242736,-433.63095075,0.00021917,2]
[312170204,1705678242745,-500.0,0.00021917,2]
[312170207,1705678242756,-500.0,0.00021917,2]
[312170210,1705678242766,-500.0,0.00021917,2]
[312170212,1705678242776,-500.0,0.00021917,2]
[312170215,1705678242787,-500.0,0.00021917,2]
[312170217,1705678242798,-500.0,0.00021917,2]
[312170219,1705678242810,-500.0,0.00021917,2]
[312170221,1705678242821,-518.65,0.00021917,2]
[312170223,1705678242831,-659.28,0.00021917,2]
[312170225,1705678242841,-761.1,0.00021917,2]
[312170227,1705678242851,-500.0,0.00021917,2]
[312170229,1705678242861,-500.0,0.00021917,2]
[312170231,1705678242871,-750.39,0.00021917,2]
[312170233,1705678242880,-500.0,0.00021917,2]
[312170235,1705678242890,-500.0,0.00021917,2]
[312170237,1705678242899,-680.1,0.00021917,2]
[312170239,1705678242909,-579.31,0.00021917,2]
[312170241,1705678242918,-500.0,0.00021917,2]
[312170243,1705678242927,-500.0,0.00021917,2]
[312170245,1705678242937,-627.26,0.00021917,2]
[312170247,1705678242947,-766.95,0.00021917,2]
[312170249,1705678242957,-849.95,0.00021917,2]
[312170251,1705678242966,-500.0,0.00021917,2]